fUST/lending_fUST_20260205
["ID","MTS","AMOUNT","RATE_DAILY","PERIOD"]
[404517527,1770234646920,-500.0,0.00040076,2]
[404517528,1770234646929,-500.0,0.00040076,2]
[404517529,1770234646939,-500.0,0.00040076,2]
[404517530,1770234646948,-500.0,0.00040076,2]
[404517532,1770234646958,-206.92992631,0.00040076,2]
[404517533,1770234646968,-500.0,0.00040076,2]
[404517534,1770234646977,-500.0,0.00040076,2]
[404517535,1770234646987,-500.0,0.00040076,2]
[404517536,1770234646996,-500.0,0.00040076,2]
[404517538,1770234647005,-500.0,0.00040076,2]
[404517539,1770234647015,-500.0,0.00040076,2]
[404517540,1770234647025,-2948.39880365,0.0004008,42]
[404517541,1770234647036,-51.60119635,0.0004008,42]
[404517542,1770234647048,-401.39880365,0.0004009,42]
[404517544,1770234647066,-2598.60119635,0.0004009,42]
[404517545,1770234647075,-1445.8031537,0.000401,42]
[404517546,1770234647087,-1554.1968463,0.000401,42]
[404517547,1770234647096,-3000.0,0.0004011,42]
[404517548,1770234647105,-3943.75415,0.0004012,42]
[404517550,1770234647114,-152.0,0.00040156,120]
[404517551,1770234647124,-393.0,0.00040209,120]
[404517552,1770234647133,-152.0,0.00040256,120]
[404517553,1770234647145,-5207.75,0.000403,10]
[404517554,1770234647154,-4082.3010339,0.0004031,2]
[404517556,1770234647172,-918.2789661,0.0004031,2]
[404517557,1770234647182,-152.0,0.00040356,120]
[404517558,1770234647192,-152.0,0.00040456,120]
[404517559,1770234647202,-515.770999,0.00040523,60]
[404517560,1770234647211,-152.0,0.00040556,120]
[404517562,1770234647220,-152.0,0.00040656,120]
[404517563,1770234647229,-152.0,0.00040756,120]
[404517564,1770234647238,-152.0,0.00040856,120]
[404517565,1770234647247,-169.08618077,0.000409,120]
[404517566,1770234647256,-172.62923835,0.000409,120]
[404517567,1770234647265,-206.15969209,0.000409,120]
[404517569,1770234647274,-1000.0,0.00040913,60]
[404517570,1770234647283,-244.0,0.00040913,60]
[404517571,1770234647292,-152.0,0.00040956,120]
[404517572,1770234647302,-221.57153056,0.00041,5]
[404517573,1770234647311,-152.0,0.00041056,120]
[404517575,1770234647320,-159.36,0.00041096,120]
[404517576,1770234647331,-358.94803172,0.00041096,31]
[404517577,1770234647344,-500.0,0.00041096,31]
[404517578,1770234647357,-152.0,0.00041156,120]
[404517580,1770234647370,-152.0,0.00041256,120]
[404517581,1770234647382,-173.32026905,0.00041273,60]
[404519780,1770235103442,5000.0,0.0003933,20]
[404519781,1770235187796,1599.52212329,0.0003933,20]
[404519782,1770235203119,3499.999999,0.0003933,90]
[404521136,1770235838523,-150.0,0.00013272,2]
[404521137,1770235838534,-300.0,0.00013272,2]
[404521138,1770235838544,-406.25493184,0.00013272,2]
[404521477,1770235845939,-393.98376847,0.00013272,2]
[404521478,1770235845952,-399.76129969,0.00013272,2]
[404521479,1770235845962,-500.0,0.00013273,2]
[404521480,1770235845972,-500.0,0.00013273,2]
[404521481,1770235845984,-500.0,0.00013273,2]
[404521482,1770235845994,-357.18421925,0.00013273,2]
[404521483,1770235846004,-500.0,0.00013273,2]
[404521484,1770235846013,-500.0,0.00013273,2]
[404521485,1770235846022,-500.0,0.00013273,2]
[404521486,1770235846031,-500.0,0.00013273,2]
[404521487,1770235846042,-500.0,0.00013273,2]
[404521488,1770235846052,-500.0,0.00013273,2]
[404521489,1770235846062,-500.0,0.00013273,2]
[404521490,1770235846071,-1430.57602524,0.00013273,2]
[404521528,1770236203116,574.84,0.00039333,20]
[404521535,1770236921099,-150.0,0.00013519,2]
[404521536,1770236921129,-1200.0,0.00013535,2]
[404521537,1770236921154,-300.0,0.00013535,2]
[404521538,1770236921182,-300.0,0.00013536,2]
[404521539,1770236921208,-300.0,0.00013536,2]
[404521540,1770236921233,-300.0,0.00013536,2]
[404521541,1770236921259,-300.0,0.00013536,2]
[404521542,1770236921284,-300.0,0.00013536,2]
[404521543,1770236921309,-300.0,0.00013536,2]
[404521544,1770236921336,-300.0,0.00013536,2]
[404521545,1770236921364,-300.0,0.00013536,2]
[404521546,1770236921390,-300.0,0.00013536,2]
[404521547,1770236921419,-300.0,0.00013536,2]
[404521548,1770236921445,-300.0,0.00013536,2]
[404521549,1770236921472,-300.0,0.00013536,2]
[404521550,1770236921624,-300.0,0.00013536,2]
[404521551,1770236921653,-300.0,0.00013536,2]
[404521552,1770236921683,-300.0,0.00013536,2]
[404521553,1770236921711,-9289.63345367,0.00013536,2]
[404521554,1770236921744,-600.0,0.00013537,2]
[404521555,1770236921770,-300.0,0.00013673,2]
[404521556,1770236921798,-1414.177919,0.00013688,2]
[404521557,1770236921828,-500.0,0.00013699,2]
[404521558,1770236921852,-500.0,0.00013699,2]
[404521559,1770236921878,-500.0,0.00013699,2]
[404521560,1770236921903,-500.0,0.00013699,2]
[404521561,1770236921932,-500.0,0.00013699,2]
[404521562,1770236921957,-500.0,0.00013699,2]
[404521563,1770236921982,-500.0,0.00013699,2]
[404521564,1770236922006,-500.0,0.00013699,2]
[404521565,1770236922031,-500.0,0.00013699,2]
[404521566,1770236922056,-236.34749229,0.00013699,2]
[404521567,1770236922084,-500.82078053,0.00013699,2]
[404521568,1770236922108,-154.01293724,0.00014221,2]
[404521569,1770236922132,-592.08737348,0.00014247,2]
[404521570,1770236922156,-500.0,0.00014247,2]
[404521571,1770236922182,-500.0,0.00014247,2]
[404521572,1770236922206,-284.76215271,0.00014247,2]
[404521573,1770236922231,-1000.0,0.00014247,2]
[404521574,1770236922257,-1000.0,0.00014247,2]
[404521575,1770236922282,-1000.0,0.0001469,2]
[404521576,1770236922307,-407.0,0.00014835,2]
[404521577,1770236922331,-1631.0,0.00014889,2]
[404521578,1770236922363,-720.0,0.00014891,2]
[404521579,1770236922388,-177.0,0.00015519,2]
[404521580,1770236922414,-519.07,0.00015559,2]
[404521581,1770236922438,-2955.402538,0.00015674,2]
[404521582,1770236922464,-864.0,0.0001638,2]
[404521583,1770236922493,-500.0,0.00016438,2]
[404521584,1770236922518,-307.0276164,0.00016438,2]
[404521585,1770236922542,-6617.20534957,0.00016583,2]
[404521586,1770236922568,-250.0,0.00017034,2]
[404521587,1770236922594,-204.0,0.00017519,2]
[404521588,1770236922619,-197.67560868,0.00017999,2]
[404521589,1770236922645,-264650.66116871,0.00018,2]
[404521590,1770236922671,-1000.0,0.00018018,2]
[404521591,1770236922696,-170.088,0.0001872,2]
[404521592,1770236922720,-1371.0,0.0001872,2]
[404521593,1770236922748,-179.0,0.0001872,2]
[404521594,1770236922773,-419.0,0.0001872,2]
[404521595,1770236922802,-201.489,0.00018758,2]
[404521596,1770236922828,-231.0,0.00019519,2]
[404521597,1770236922857,-1000.0,0.0001982,2]
[404521598,1770236922884,-244.0,0.0001982,2]
[404521599,1770236922910,-258.0,0.00021519,2]
[404521600,1770236922936,-1371.0,0.0002172,2]
[404521601,1770236922961,-179.0,0.0002172,2]
[404521602,1770236922987,-419.0,0.0002172,2]
[404521603,1770236923011,-366.98509101,0.00021748,2]
[404521604,1770236923035,-150.0,0.00021758,2]
[404521605,1770236923062,-1000.0,0.00021802,10]
[404521606,1770236923089,-492.0,0.00021802,10]
[404521607,1770236923113,-741.08018794,0.00022457,2]
[404521608,1770236923139,-1041.66666667,0.00022458,2]
[404521609,1770236923166,-324.45782051,0.00022491,2]
[404521610,1770236923191,-178.83448301,0.00022719,5]
[404521611,1770236923216,-181.9238539,0.00022719,5]
[404521612,1770236923254,-178.83448301,0.00023426,5]
[404521613,1770236923280,-181.92385389,0.00023426,5]
[404521614,1770236923312,-285.0,0.00023519,2]
[404521615,1770236923340,-1000.0,0.00023982,10]
[404521616,1770236923369,-791.0,0.00023982,10]
[404521617,1770236923395,-850.631,0.0002472,2]
[404521618,1770236923423,-179.0,0.0002472,2]
[404521619,1770236923450,-5091.8028671,0.000249,2]
[404521620,1770236923479,-312.0,0.00025519,2]
[404521621,1770236923505,-1591.53309,0.00026,30]
[404521622,1770236923533,-1000.0,0.0002638,30]
[404521623,1770236923560,-1000.0,0.0002638,30]
[404521624,1770236923585,-150.0,0.00027397,5]
[404521625,1770236923612,-339.0,0.00027519,2]
[404521626,1770236923640,-159.49,0.0002772,2]
[404521627,1770236923666,-152.37298089,0.00027945,5]
[404521628,1770236923832,-1000.0,0.00029018,30]
[404521629,1770236923858,-1000.0,0.00029018,30]
[404521630,1770236923885,-579.0,0.00029018,30]
[404521631,1770236923909,-396.91702657,0.00029499,7]
[404521632,1770236923936,-366.0,0.00029519,2]
[404521633,1770236923961,-633.50646605,0.00029653,2]
[404521634,1770236923987,-154.47,0.000301,2]
[404521635,1770236924012,-1018.36057342,0.00030301,2]
[404521636,1770236924040,-9289.63345367,0.00030311,2]
[404521637,1770236924066,-154.47,0.000304,2]
[404521638,1770236924091,-154.47,0.000307,2]
[404521639,1770236924116,-306.79978169,0.0003099,2]
[404521640,1770236924142,-154.47,0.00031,2]
[404521641,1770236924168,-154.47,0.000312,2]
[404521642,1770236924193,-154.47,0.000315,2]
[404521643,1770236924219,-393.0,0.00031519,2]
[404521644,1770236924244,-154.47,0.000318,2]
[404521645,1770236924272,-686.0,0.0003192,30]
[404521646,1770236924296,-154.47,0.000321,2]
[404521647,1770236924320,-500.0,0.0003216,2]
[404521648,1770236924345,-1080.9368,0.0003222,30]
[404521649,1770236924370,-154.47,0.000323,2]
[404521650,1770236924395,-474.375,0.00032534,32]
[404521651,1770236924419,-189.99614004,0.00032534,32]
[404521652,1770236924443,-154.47,0.000326,2]
[404521653,1770236924468,-4339.79,0.00032877,10]
[404521654,1770236924492,-3616.49,0.00032877,10]
[404521655,1770236924517,-3013.74,0.00032877,10]
[404521656,1770236924541,-154.47,0.000329,2]
[404521657,1770236924566,-4536.3532817,0.00033,120]
[404521658,1770236924591,-154.47,0.000332,2]
[404521659,1770236924615,-420.0,0.00033519,120]
[404521660,1770236924640,-200.0,0.00033757,10]
[404521661,1770236924663,-200.0,0.00033757,10]
[404521662,1770236924692,-1074.4531093,0.00034239,2]
[404521663,1770236924717,-23069.64325683,0.0003479,5]
[404521664,1770236924742,-59597.81559233,0.00035,5]
[404521665,1770236924766,-447.0,0.00035519,120]
[404521666,1770236924793,-730.587638,0.00037368,60]
[404521667,1770236924819,-474.0,0.00037519,120]
[404521668,1770236924845,-460.96844212,0.00037923,4]
[404521669,1770236924870,-211.91526963,0.00037923,4]
[404521670,1770236924894,-1074.4531093,0.00037994,2]
[404521671,1770236924918,-196.720863,0.00038,60]
[404521672,1770236924942,-500.0,0.00038024,15]
[404521673,1770236924967,-386.24219041,0.0003874,2]
[404521674,1770236924991,-302.541053,0.00038855,60]
[404521675,1770236925016,-163.07331912,0.00039225,2]
[404521676,1770236925041,-350.19231356,0.00039321,2]
[404521677,1770236925066,-630.34616441,0.00039321,2]
[404521678,1770236925090,-160.98954239,0.00039321,2]
[404521679,1770236925115,-289.7811763,0.00039321,2]
[404521680,1770236925139,-2000.0,0.00039329,120]
[404521681,1770236925164,-1000.0,0.00039335,20]
[404521682,1770236925190,-1000.0,0.00039335,20]
[404521683,1770236925215,-1000.0,0.00039335,20]
[404521684,1770236925240,-1000.0,0.00039335,20]
[404521685,1770236925265,-1000.0,0.00039335,20]
[404521686,1770236925290,-1000.0,0.00039335,20]
[404521687,1770236925316,-1000.0,0.00039335,20]
[404521688,1770236925340,-1000.0,0.00039335,20]
[404521689,1770236925365,-1000.0,0.00039335,20]
[404521690,1770236925390,-1000.0,0.00039335,20]
[404521691,1770236925414,-1000.0,0.00039335,20]
[404521692,1770236925438,-1000.0,0.00039335,20]
[404521693,1770236925463,-1000.0,0.00039335,20]
[404521694,1770236925487,-1000.0,0.00039335,20]
[404521695,1770236925511,-1000.0,0.00039335,20]
[404521696,1770236925535,-1000.0,0.00039335,20]
[404521697,1770236925559,-1000.0,0.00039335,20]
[404521698,1770236925582,-1000.0,0.00039335,20]
[404521699,1770236925607,-1013.0,0.00039335,20]
[404521700,1770236925631,-173.39,0.000394,7]
[404521701,1770236925655,-175.22,0.000394,7]
[404521702,1770236925681,-172.62923835,0.000397,120]
[404521703,1770236925706,-206.15969209,0.000397,120]
[404521704,1770236925733,-169.08618077,0.000397,120]
[404521705,1770236925757,-150.0,0.000397,40]
[404521706,1770236925876,-18921.25555774,0.00039714,2]
[404521708,1770236970149,-1711.30611344,0.0003,7]
[404521745,1770237032432,-11068.80000001,0.0003,7]
[404521987,1770237040853,-371.8098,0.0003,7]
[404522037,1770237045193,-565.8992,0.0003,7]
[404522054,1770237051456,-335.88887542,0.0003,7]
[404522055,1770237051466,-741.08018794,0.0003,7]
[404522056,1770237051477,-201.14211202,0.00032,2]
[404522057,1770237051487,-2804.77170067,0.00032,2]
[404522058,1770237051496,-741.08018794,0.00032,2]
[404522059,1770237051505,-1041.66666667,0.00032,2]
[404522060,1770237051514,-203.23382733,0.000332,117]
[404522061,1770237051524,-193.1210952,0.00038745,2]
[404522062,1770237051533,-206.15969209,0.000397,120]
[404522063,1770237051542,-169.08618077,0.000397,120]
[404522064,1770237051551,-44016.46583558,0.00039714,2]
[404522065,1770237051560,-328.319302,0.00039805,60]
[404522066,1770237051570,-251.2,0.0004,30]
[404522067,1770237051579,-944.24523005,0.0004,60]
[404522068,1770237051589,-600.0,0.00040507,60]
[404522069,1770237051598,-206.15969209,0.000409,120]
[404522070,1770237051607,-169.08618077,0.000409,120]
[404522071,1770237051617,-250.0,0.00040965,2]
[404522072,1770237051626,-250.0,0.00040965,2]
[404522073,1770237051635,-250.0,0.00040965,2]
[404522074,1770237051644,-250.0,0.00040965,2]
[404522075,1770237051653,-250.0,0.00040965,2]
[404522076,1770237051663,-500.0,0.00040965,2]
[404522077,1770237051672,-250.0,0.00040965,2]
[404522078,1770237051681,-500.0,0.00040965,2]
[404522079,1770237051691,-250.0,0.00040965,2]
[404522080,1770237051700,-500.0,0.00040965,2]
[404522081,1770237051710,-250.0,0.00040965,2]
[404522082,1770237051719,-500.0,0.00040965,2]
[404522083,1770237051728,-250.0,0.00040965,2]
[404522084,1770237051737,-500.0,0.00040965,2]
[404522085,1770237051747,-250.0,0.00040965,2]
[404522086,1770237051756,-250.0,0.00040965,2]
[404522087,1770237051766,-250.0,0.00040965,2]
[404522088,1770237051776,-250.0,0.00040965,2]
[404522089,1770237051786,-250.0,0.00040965,2]
[404522090,1770237051795,-250.0,0.00040965,2]
[404522091,1770237051804,-250.0,0.00040965,2]
[404522092,1770237051815,-250.0,0.00040965,2]
[404522093,1770237051824,-250.0,0.00040965,2]
[404522094,1770237051833,-250.0,0.00040965,2]
[404522095,1770237051843,-250.0,0.00040965,2]
[404522096,1770237051855,-250.0,0.00040965,2]
[404522097,1770237051865,-250.0,0.00040965,2]
[404522098,1770237051875,-2036.72114684,0.0004098,3]
[404522099,1770237051885,-201.0,0.00041,64]
[404522100,1770237051894,-601.2636222,0.00041096,31]
[404522101,1770237051904,-152.0,0.00041356,120]
[404522102,1770237051915,-152.0,0.00041456,120]
[404522103,1770237051924,-1018.36057342,0.00041546,3]
[404522104,1770237051934,-152.0,0.00041556,120]
[404522105,1770237051943,-152.0,0.00041656,120]
[404522106,1770237051952,-1074.4531093,0.0004175,2]
[404522107,1770237051962,-152.0,0.00041756,120]
[404522108,1770237051973,-152.0,0.00041856,120]
[404522109,1770237051983,-152.0,0.00041956,120]
[404522110,1770237051992,-152.0,0.00042056,120]
[404522111,1770237052002,-2000.0,0.00042069,120]
[404522112,1770237052011,-152.0,0.00042156,120]
[404522113,1770237052020,-152.0,0.00042256,120]
[404522114,1770237052031,-152.0,0.00042356,120]
[404522115,1770237052040,-780.0,0.000424,30]
[404522116,1770237052049,-152.0,0.00042456,120]
[404522117,1770237052060,-152.0,0.00042556,120]
[404522118,1770237052070,-152.0,0.00042656,120]
[404522119,1770237052079,-152.0,0.00042756,120]
[404522120,1770237052088,-152.0,0.00042856,120]
[404522121,1770237052098,-163.07331911,0.000429,2]
[404522122,1770237052107,-212.86130888,0.000429,15]
[404522123,1770237052116,-152.60623394,0.00042956,120]
[404522124,1770237052125,-2511.45,0.0004299,10]
[404522125,1770237052135,-2092.88,0.0004299,10]
[404522126,1770237052145,-2036.72114684,0.0004299,3]
[404522127,1770237052157,-125195.61249732,0.00043,6]
[404522128,1770237052166,-160.04,0.00043,14]
[404522129,1770237052176,-225.56,0.00043,30]
[404522130,1770237052186,-1306.751201,0.00043347,60]
[404522131,1770237052195,-720.0,0.00044558,60]
[404522132,1770237052204,-1018.36057342,0.0004499,3]
[404522133,1770237052215,-659.58269253,0.00045,120]
[404522134,1770237052225,-8150.3888147,0.00045,120]
[404522135,1770237052235,-194.21185071,0.00045,2]
[404522136,1770237052244,-325.074123,0.00045378,60]
[404522137,1770237052253,-274.977306,0.00045378,60]
[404522138,1770237052262,-1074.4531093,0.00045505,2]
[404522139,1770237052271,-425.74,0.000458,7]
[404522140,1770237052281,-711.0,0.00046596,16]
[404522141,1770237052290,-225.56,0.000466,30]
[404522142,1770237052299,-400.0,0.00046916,16]
[404522143,1770237052308,-400.0,0.00046916,16]
[404522144,1770237052317,-9289.63345367,0.00047085,2]
[404522145,1770237052327,-400.0,0.00047236,16]
[404522146,1770237052336,-500.0,0.00048046,60]
[404522147,1770237052347,-200.0,0.00048493,120]
[404522148,1770237052356,-200.0,0.00048551,120]
[404522149,1770237052366,-4999.98187761,0.000489,120]
[404522150,1770237052374,-700.35858256,0.00049,2]
[404522151,1770237052383,-167.0,0.00049,90]
[404522152,1770237052392,-255.0,0.00049,90]
[404522153,1770237052401,-864.0,0.00049014,120]
[404522154,1770237052410,-1539.66,0.00049039,14]
[404522155,1770237052419,-200.0,0.00049228,120]
[404522156,1770237052428,-255.0,0.00049589,120]
[404522157,1770237052437,-225.56,0.000496,30]
[404522158,1770237052447,-1007.51,0.00049641,14]
[404522159,1770237052455,-898.90931004,0.0004988,120]
[404522160,1770237052472,-780.14068996,0.0004988,120]
[404522161,1770237052482,-200.0,0.00049941,120]
[404522162,1770237052491,-605.88286008,0.0005,2]
[404522163,1770237052500,-152.0,0.0005,120]
[404522164,1770237052510,-202.9290942,0.0005,120]
[404522165,1770237052519,-2500.0,0.0005,3]
[404522166,1770237052530,-711.0,0.0005001,31]
[404522167,1770237052539,-151.0,0.00050136,30]
[404522168,1770237052548,-1688.64466126,0.00050246,14]
[404522169,1770237052685,-475.856,0.00050246,14]
[404522170,1770237052703,-1686.10933874,0.00050246,14]
[404522171,1770237052713,-151.0,0.00050821,32]
[404522172,1770237052723,-357.0,0.00050959,120]
[404522173,1770237052732,-461.02753643,0.00051,120]
[404522174,1770237052742,-3000.0,0.00051,85]
[404522175,1770237052751,-1018.36057342,0.00051,4]
[404522176,1770237052761,-699.33516301,0.0005101,85]
[404522212,1770238231632,-276.34930664,0.00026061,7]
[404522214,1770238231642,-1200.0,0.00026179,2]
[404522216,1770238231651,-300.0,0.0002618,2]
[404522218,1770238231662,-300.0,0.0002618,2]
[404522220,1770238231676,-300.0,0.0002618,2]
[404522222,1770238231686,-300.0,0.0002618,2]
[404522224,1770238231695,-8142.88207175,0.00026181,2]
[404522226,1770238231706,-170.53055151,0.00026181,2]
[404522228,1770238231715,-276.34930663,0.00026182,8]
[404522230,1770238231725,-276.34930663,0.00026302,8]
[404522232,1770238231734,-300.0,0.00026402,2]
[404522234,1770238231744,-401.0,0.00028327,2]
[404522236,1770238231755,-868.0,0.00028453,2]
[404522238,1770238231764,-379.5,0.00032534,32]
[404522240,1770238231774,-500.0,0.00033199,7]
[404522242,1770238231782,-500.0,0.00033199,7]
[404522244,1770238231793,-500.0,0.00033199,7]
[404522246,1770238231802,-500.0,0.00033199,7]
[404522248,1770238231811,-500.0,0.00033199,7]
[404522250,1770238231820,-500.0,0.00033199,7]
[404522252,1770238231830,-500.0,0.00033199,7]
[404522254,1770238231839,-500.0,0.00033199,7]
[404522256,1770238231848,-378.53045387,0.00033199,7]
[404522258,1770238231858,-500.0,0.00033199,7]
[404522260,1770238231867,-500.0,0.00033199,7]
[404522262,1770238231876,-500.0,0.00033199,7]
[404522264,1770238231885,-500.0,0.00033199,7]
[404522266,1770238231894,-500.0,0.00033199,7]
[404522276,1770238232041,-500.0,0.00033199,7]
[404522277,1770238232052,-500.0,0.00033199,7]
[404522278,1770238232062,-500.0,0.00033199,7]
[404522279,1770238232071,-500.0,0.00033199,7]
[404522280,1770238232080,-500.0,0.00033199,7]
[404522281,1770238232090,-117.83112533,0.00033199,7]
[404522282,1770238232180,-382.16887467,0.00033199,7]
[404522283,1770238232189,-500.0,0.00033199,7]
[404522284,1770238232198,-500.0,0.00033199,7]
[404522285,1770238232209,-615.01554219,0.00033199,7]
[404522286,1770238232218,-263.1384408,0.00033199,7]
[404522287,1770238232227,-500.0,0.00033199,7]
[404522288,1770238232236,-500.0,0.00033199,7]
[404522289,1770238232246,-500.0,0.00033199,7]
[404522290,1770238232255,-500.0,0.00033199,7]
[404522291,1770238232264,-500.0,0.00033199,7]
[404522292,1770238232273,-500.0,0.00033199,7]
[404522293,1770238232282,-500.0,0.00033199,7]
[404522294,1770238232291,-500.0,0.00033199,7]
[404522295,1770238232301,-500.0,0.00033199,7]
[404522296,1770238232309,-500.0,0.00033199,7]
[404522297,1770238232318,-500.0,0.00033199,7]
[404522298,1770238232327,-110.79633854,0.00033199,7]
[404522299,1770238232339,-389.20366146,0.00033199,7]
[404522300,1770238232348,-741.08018794,0.00033199,7]
[404522301,1770238232358,-5897.41973049,0.0004252,2]
[404522548,1770238240026,-741.08018794,0.0002607,2]
[404522550,1770238240036,-1041.66666667,0.0002607,2]
[404522552,1770238240046,-420.88453554,0.00042519,31]
[404522554,1770238240056,-1539.07382497,0.0004252,2]
[404522558,1770238240083,-876.9190678,0.0004252,2]
[404522561,1770238240096,-780.0,0.000441,30]
[404522563,1770238240106,-417.0,0.00044709,16]
[404522565,1770238240115,-500.0,0.00047854,60]
[404522567,1770238240125,-710.0,0.00048227,16]
[404522569,1770238240139,-161.0,0.0004836,31]
[404522571,1770238240148,-343.92,0.00049165,14]
[404522573,1770238240158,-400.0,0.00049465,31]
[404522575,1770238240167,-363.2,0.00049836,14]
[404522577,1770238240177,-459.81,0.0005,120]
[404522579,1770238240187,-151.0,0.00050136,30]
[404522581,1770238240196,-357.0,0.00050411,120]
[404522584,1770238240207,-979.0,0.00050521,14]
[404522587,1770238240217,-400.0,0.0005055,31]
[404522589,1770238240226,-151.0,0.00050821,32]
[404522591,1770238240235,-167.0,0.00051,120]
[404522593,1770238240244,-191.0,0.00051,120]
[404522595,1770238240254,-2300.66483699,0.0005101,85]
[404522597,1770238240263,-3000.0,0.0005102,85]
[404522599,1770238240272,-191.0,0.00051027,120]
[404522601,1770238240281,-3000.0,0.0005103,85]
[404522603,1770238240290,-3000.0,0.0005104,85]
[404522605,1770238240299,-107.61237821,0.0005105,85]
[404522607,1770238240311,-738.89698237,0.0005105,85]
[404522610,1770238240321,-390.7,0.0005105,85]
[404522713,1770238245127,-565.8992,0.0005105,85]
[404522718,1770238245926,-1196.89143942,0.0005105,85]
[404522719,1770238245937,-3000.0,0.0005106,85]
[404522720,1770238245947,-1319.9488615,0.0005107,85]
[404522721,1770238245960,-3803.0474745,0.0005107,85]
[404522722,1770238245969,-152.0,0.000511,120]
[404522723,1770238245978,-278.32799109,0.00051274,30]
[404522725,1770238245987,-1576.23185444,0.000515,3]
[404522728,1770238246010,-34.92461456,0.000515,3]
[404522730,1770238246021,-888.843531,0.000515,3]
[404522731,1770238246030,-151.0,0.00051506,34]
[404522733,1770238246040,-500.0,0.00051652,120]
[404522735,1770238246048,-379.5,0.00051901,94]
[404522736,1770238246057,-304.22362864,0.00052,120]
[404522737,1770238246066,-741.08018794,0.00052,3]
[404522738,1770238246075,-400.0,0.00052008,31]
[404522739,1770238246084,-273.970364,0.00052054,60]
[404522740,1770238246093,-228.308637,0.00052054,60]
[404522741,1770238246102,-228.308638,0.00052054,60]
[404522742,1770238246111,-160.0,0.00052069,3]
[404522743,1770238246121,-600.0,0.00052122,120]
[404522744,1770238246131,-151.0,0.00052191,36]
[404522745,1770238246145,-152.0,0.000522,120]
[404522746,1770238246154,-475.0,0.00052361,120]
[404522747,1770238246163,-475.0,0.00052361,120]
[404522748,1770238246172,-475.0,0.00052361,120]
[404522749,1770238246183,-1041.66666667,0.00052665,120]
[404522750,1770238246192,-151.0,0.00052876,38]
[404522751,1770238246202,-160.04,0.00053,14]
[404522752,1770238246213,-157.7,0.00053,14]
[404522753,1770238246225,-200.0,0.00053225,120]
[404522754,1770238246236,-168.0,0.00053291,120]
[404522755,1770238246246,-191.0,0.00053291,120]
[404522756,1770238246257,-163.07331911,0.00053325,2]
[404522757,1770238246266,-212.86130881,0.00053325,25]
[404522758,1770238246276,-152.0,0.000534,120]
[404522759,1770238246285,-157.7,0.000534,14]
[404522760,1770238246295,-1629.37691748,0.00053415,4]
[404522761,1770238246306,-1744.06,0.00053415,10]
[404522762,1770238246315,-1453.39,0.00053415,10]
[404522763,1770238246324,-155.0,0.00053424,120]
[404522764,1770238246333,-500.0,0.00053425,120]
[404522765,1770238246344,-414.54918174,0.00053425,120]
[404522766,1770238246357,-85.45081826,0.00053425,120]
[404522767,1770238246366,-500.0,0.00053425,120]
[404522768,1770238246375,-500.0,0.00053425,120]
[404522769,1770238246385,-477.52830488,0.00053425,120]
[404522770,1770238246398,-27.52338399,0.00053425,120]
[404522771,1770238246408,-500.0,0.00053425,120]
[404522772,1770238246418,-353.16161601,0.00053425,120]
[404522806,1770239431867,-225.19,0.000261,2]